Workbook

Sheet Kulud
B3: Ürituse eelarve [Ürituse nimi]
H4: Kulud
H6: Prognoos | I6: Tegelik
C7: Kogukulu | H7: =SUM(D14,D22,D28,D35,H14,H22,H27) -> 1,145.00 € | I7: =SUM(E14,E22,E28,E35,I14,I22,I27) -> 395.00 €
C9: Toimumiskoht | D9: Prognoos | E9: Tegelik | G9: Joogid ja suupisted | H9: Prognoos | I9: Tegelik
C10: Ruumi rent | D10: 500.00 € | E10: 250.00 € | G10: Söök
C11: Palgatud personal | D11: 400.00 € | E11: 50.00 € | G11: Joogid
C12: Varustus | G12: Laudlinad
C13: Lauad ja toolid | G13: Personal ja lisatasud
C14: Kokku | D14: =SUBTOTAL(109,Tabel1[Prognoos]) -> 900.00 € | E14: =SUBTOTAL(109,Tabel1[Tegelik]) -> 300.00 € | G14: Kokku | H14: =SUBTOTAL(109,Tabel5[Prognoos]) -> 0.00 € | I14: =SUBTOTAL(109,Tabel5[Tegelik]) -> 0.00 €
C16: Kaunistused | D16: Prognoos | E16: Tegelik | G16: Programm | H16: Prognoos | I16: Tegelik
C17: Lilled | D17: 200.00 € | E17: 50.00 € | G17: Esinejad
C18: Küünlad | G18: Õhtujuht
C19: Valgustus | G19: Reisimine
C20: Õhupallid | G20: Hotell
C21: Ühekordseks kasutamiseks mõeldud tarvikud | G21: Muu
C22: Kokku | D22: =SUBTOTAL(109,Tabel2[Prognoos]) -> 200.00 € | E22: =SUBTOTAL(109,Tabel2[Tegelik]) -> 50.00 € | G22: Kokku | H22: =SUBTOTAL(109,Tabel6[Prognoos]) -> 0.00 € | I22: =SUBTOTAL(109,Tabel6[Tegelik]) -> 0.00 €
C24: Ettevalmistused | D24: Prognoos | E24: Tegelik | G24: Hinnad | H24: Prognoos | I24: Tegelik
C25: Kutsete kujundamine | D25: 45.00 € | E25: 45.00 € | G25: Lindid/plakatid
C26: Pildistamisteenus / fotode ilmutamine | G26: Kingitused
C27: Postikulu | G27: Kokku | H27: =SUBTOTAL(109,Tabel7[Prognoos]) -> 0.00 € | I27: =SUBTOTAL(109,Tabel7[Tegelik]) -> 0.00 €
C28: Kokku | D28: =SUBTOTAL(109,Tabel3[Prognoos]) -> 45.00 € | E28: =SUBTOTAL(109,Tabel3[Tegelik]) -> 45.00 €
C30: Muud kulud | D30: Prognoos | E30: Tegelik
C31: Telefon
C32: Transport
C33: Kirjatarbed
C34: Faksiteenused
C35: Kokku | D35: =SUBTOTAL(109,Tabel4[Prognoos]) -> 0.00 € | E35: =SUBTOTAL(109,Tabel4[Tegelik]) -> 0.00 €

Sheet Sissetulekud
B3: Ürituse eelarve [Ürituse nimi]
F4: Sissetulekud
F6: Prognoos | G6: Tegelik
B7: Tulud kokku | F7: =SUM(F14,F21,F28,F36) -> 1,936.00 € | G7: =SUM(G14,G21,G28,G36) -> 1,831.00 €
B9: Piletid
B10: Prognoos | C10: Tegelik | F10: Prognoos | G10: Tegelik
B11: 300 | C11: 278 | D11: Täiskasvanud @ | E11: 5.00 € | F11: =B11*E11 -> 1,500.00 € | G11: =C11*E11 -> 1,390.00 €
B12: 197 | C12: 195 | D12: Lapsed @ | E12: 2.00 € | F12: =B12*E12 -> 394.00 € | G12: =C12*E12 -> 390.00 €
B13: 42 | C13: 51 | D13: Muu @ | E13: 1.00 € | F13: =B13*E13 -> 42.00 € | G13: =C13*E13 -> 51.00 €
F14: =SUM(F11:F13) -> 1,936.00 € | G14: =SUM(G11:G13) -> 1,831.00 €
B16: Programmi reklaamid
B17: Prognoos | C17: Tegelik | F17: Prognoos | G17: Tegelik
D18: Plank @ | F18: =B18*E18 -> 0.00 € | G18: =C18*E18 -> 0.00 €
D19: Pool lehekülge @ | F19: =B19*E19 -> 0.00 € | G19: =C19*E19 -> 0.00 €
D20: Veerand lehekülge @ | F20: =B20*E20 -> 0.00 € | G20: =C20*E20 -> 0.00 €
F21: =SUM(F18:F20) -> 0.00 € | G21: =SUM(G18:G20) -> 0.00 €
B23: Eksponendid/MüüJad
B24: Prognoos | C24: Tegelik | F24: Prognoos | G24: Tegelik
D25: Suured näituseboksid @ | F25: =B25*E25 -> 0.00 € | G25: =C25*E25 -> 0.00 €
D26: Keskmised näituseboksid @ | F26: =B26*E26 -> 0.00 € | G26: =C26*E26 -> 0.00 €
D27: Väikesed näituseboksid @ | F27: =B27*E27 -> 0.00 € | G27: =C27*E27 -> 0.00 €
F28: =SUM(F25:F27) -> 0.00 € | G28: =SUM(G25:G27) -> 0.00 €
B30: Kaupade müük
B31: Prognoos | C31: Tegelik | F31: Prognoos | G31: Tegelik
D32: Tooted @ | F32: =B32*E32 -> 0.00 € | G32: =C32*E32 -> 0.00 €
D33: Tooted @ | F33: =B33*E33 -> 0.00 € | G33: =C33*E33 -> 0.00 €
D34: Tooted @ | F34: =B34*E34 -> 0.00 € | G34: =C34*E34 -> 0.00 €
D35: Tooted @ | F35: =B35*E35 -> 0.00 € | G35: =C35*E35 -> 0.00 €
F36: =SUM(F32:F35) -> 0.00 € | G36: =SUM(G32:G35) -> 0.00 €

Sheet Kokkuvõte
B3: Ürituse eelarve [Ürituse nimi]
F4: Kasumi-kahjumi kokkuvõte
F6: Prognoos | G6: Tegelik
B7: Kogutulu | F7: =Sissetulekud!F7 -> 1,936.00 € | G7: =Sissetulekud!G7 -> 1,831.00 €
B8: Kogukulud | F8: =Kulud!H7 -> 1,145.00 € | G8: =Kulud!I7 -> 395.00 €
B9: Kogukasum (või -kahjum) | F9: =F7-F8 -> 791.00 € | G9: =G7-G8 -> 1,436.00 €
